{"text_format":"3","workbook":"xlsx","n_sheets":3,"sheets":["البدء","هدية الميزانية والمتعقب","البيانات"],"not_rendered":{"charts":1,"defined_names":1},"read":"whole","date_system":"1900"}

{"sheet":"البدء","index":0,"n_rows":7,"n_cols":2,"rows_kept":7}
[null,"حول القالب"]
[null,"استخدم هذا القالب لتسجيل مشترياتك من الهدايا وتتبعها مقابل الميزانية."]
[null,"أدخل في الجدول أسماء العائلة والأصدقاء، وعناصر الهدايا، والمبالغ المدرجة في الميزانية والمنفقة، والملاحظات، وحدد المناسبة والشهر."]
[null,"يتم تحديث الرسم البياني الشهري بشكل تلقائي."]
[null,"ملاحظة: "]
[null,"تم توفير إرشادات إضافية في العمود A في ورقة عمل \"مخطط ميزانية العطلة\". تم إخفاء هذا النص عن قصد. لإزالة النص، حدد العمود A، ثم حدد \"حذف\". لإظهار النص، حدد العمود A، ثم قم بتغيير لون الخط."]
[null,"لمعرفة المزيد حول الجدول، اضغط على SHIFT ثم F10 ضمن جدول وحدد الخيار \"جدول\"، ثم حدد \"النص البديل\"."]

{"sheet":"هدية الميزانية والمتعقب","index":1,"n_rows":10,"n_cols":13,"rows_kept":10,"merged":[[0,1,0,4],[0,5,0,12],[1,1,1,2],[2,1,2,12],[3,1,3,3]]}
["قم بإنشاء ميزانية ومتعقب للهدايا الشخصية في ورقة العمل هذه. يوجد عنوان ورقة العمل هذه في الخلية على اليسار وتلميح المعلومات في الخلية F1. توجد تعليمات مفيدة حول كيفية استخدام ورقة العمل هذه في الخلايا الموجودة في هذا العمود.","ميزانية الهدايا والمتعقب",{"$nulls":3},"املأ قدر ما تستطيع في بداية كل عام جديد. أدخل أسماء العائلة والأصدقاء، وحدد مناسبة الهدية، وحدد شهر الحدث، واكتب المبلغ الذي تريد إنفاقه. قد يظهر كل شخص عدة مرات داخل الطاولة لكل مناسبة مختلفة (عيد ميلاد، عطلة، حفلة هدايا، إلخ)."]
["توجد تسمية النظرة العامة الشهرية في الخلية على اليمين وتلميح في الخلية D2.","نظرة عامة للشهر",null,"استخدم الرسم البياني لإلقاء نظرة على الأشهر القادمة من أجل التخطيط للمستقبل. سجل مشترياتك لتتبعها مقابل ميزانيتك."]
["يوجد مخطط عمودي للمبالغ المدرجة في الميزانية مع تراكب مخطط خطي للمبلغ المنفق في الخلية على اليمين.","يوجد مخطط عمودي للمبالغ المدرجة في الميزانية مع تراكب مخطط خطي للمبلغ المنفق في الخلية."]
["ميزانية الهدايا وملصق المقتفي في الخلية على اليمين.","ميزانية الهدايا والمتعقب"]
["أدخل التفاصيل في جدول تعقب الميزانية بدءاً من الخلية على اليمين.","الشخص","مناسبة","الشهر","المبلغ\nالمدرجة في الميزانية","المبلغ\nما تم إنفاقه","هدية","ارتباط إلى هدية","في المتجر\nعبر الإنترنت","هل تم الشراء؟","هل تريدها مغلّفة؟","هل تم التسليم؟","ملاحظات"]
[null,"الاسم 1","أعياد ميلاد","يونيو",{"v":50,"d":"ر.س.‏ 50"},{"v":30,"d":"ر.س.‏ 30"},"الأحذية","البائع","عبر الإنترنت","نعم","لا","لا","6/16، تذاكر فيلم"]
[null,"الاسم 2","احتفالات الذكرى السنوية","أبريل",{"v":20,"d":"ر.س.‏ 20"},{"v":20,"d":"ر.س.‏ 20"},"قطة","البائع","في المتجر","لا","لا","لا","لقد ذكر أنه يحب الكلاب"]
[null,"الاسم 3","أيام الإجازات","يوليو",{"v":50,"d":"ر.س.‏ 50"},{"v":70,"d":"ر.س.‏ 70"},"سماعات رأس","البائع","عبر الإنترنت","لا","لا","لا","ممتلكات السكن"]
[null,"الاسم 4","أعياد ميلاد","يناير",{"v":20,"d":"ر.س.‏ 20"},{"v":30,"d":"ر.س.‏ 30"},"اللعبة","البائع","في المتجر","نعم","نعم","نعم"]
[null,"الاسم 5","حفلات الزفاف","يونيو",{"v":100,"d":"ر.س.‏ 100"},{"v":150,"d":"ر.س.‏ 150"},"مزهرية من الكريستال","البائع","في المتجر","نعم","نعم","لا"]

{"sheet":"البيانات","index":2,"n_rows":13,"n_cols":8,"rows_kept":13,"hidden":true}
["المناسبات",null,"التاريخ","التاريخ","المبلغ المخصص للميزانية\nأعياد ميلاد","المبلغ المخصص للميزانية\nأيام الإجازات","المبلغ المخصص للميزانية\nأخرى","المبلغ المُنفق"]
["أعياد ميلاد",null,"يناير","يناير",{"$f":"SUMIFS(BudgetTracker[المبلغ\nالمدرجة في الميزانية],BudgetTracker[الشهر],\"يناير\",BudgetTracker[مناسبة],\"أعياد ميلاد\")","v":{"v":20,"d":"ر.س.‏ 20"}},{"$f":"SUMIFS(BudgetTracker[المبلغ\nالمدرجة في الميزانية],BudgetTracker[الشهر],\"يناير\",BudgetTracker[مناسبة],\"أيام الإجازات\")","v":{"v":0,"d":"ر.س.‏ 0"}},{"$f":"SUMIFS(BudgetTracker[المبلغ\nالمدرجة في الميزانية],BudgetTracker[الشهر],\"يناير\",BudgetTracker[مناسبة],\"<>أيام الإجازات\",BudgetTracker[مناسبة],\"<>أعياد ميلاد\")","v":{"v":0,"d":"ر.س.‏ 0"}},{"$f":"SUMIFS(BudgetTracker[المبلغ\nما تم إنفاقه],BudgetTracker[الشهر],\"يناير\")","v":{"v":30,"d":"ر.س.‏ 30"}}]
["أيام الإجازات",null,"فبراير","فبراير",{"$f":"SUMIFS(BudgetTracker[المبلغ\nالمدرجة في الميزانية],BudgetTracker[الشهر],\"فبراير\",BudgetTracker[مناسبة],\"أعياد ميلاد\")","v":{"v":0,"d":"ر.س.‏ 0"}},{"$f":"SUMIFS(BudgetTracker[المبلغ\nالمدرجة في الميزانية],BudgetTracker[الشهر],\"فبراير\",BudgetTracker[مناسبة],\"أيام الإجازات\")","v":{"v":0,"d":"ر.س.‏ 0"}},{"$f":"SUMIFS(BudgetTracker[المبلغ\nالمدرجة في الميزانية],BudgetTracker[الشهر],\"فبراير\",BudgetTracker[مناسبة],\"<>أيام الإجازات\",BudgetTracker[مناسبة],\"<>أعياد ميلاد\")","v":{"v":0,"d":"ر.س.‏ 0"}},{"$f":"SUMIFS(BudgetTracker[المبلغ\nما تم إنفاقه],BudgetTracker[الشهر],\"فبراير\")","v":{"v":0,"d":"ر.س.‏ 0"}}]
["احتفالات الذكرى السنوية",null,"مارس","مارس",{"$f":"SUMIFS(BudgetTracker[المبلغ\nالمدرجة في الميزانية],BudgetTracker[الشهر],\"مارس\",BudgetTracker[مناسبة],\"أعياد ميلاد\")","v":{"v":0,"d":"ر.س.‏ 0"}},{"$f":"SUMIFS(BudgetTracker[المبلغ\nالمدرجة في الميزانية],BudgetTracker[الشهر],\"مارس\",BudgetTracker[مناسبة],\"أيام الإجازات\")","v":{"v":0,"d":"ر.س.‏ 0"}},{"$f":"SUMIFS(BudgetTracker[المبلغ\nالمدرجة في الميزانية],BudgetTracker[الشهر],\"مارس\",BudgetTracker[مناسبة],\"<>أيام الإجازات\",BudgetTracker[مناسبة],\"<>أعياد ميلاد\")","v":{"v":0,"d":"ر.س.‏ 0"}},{"$f":"SUMIFS(BudgetTracker[المبلغ\nما تم إنفاقه],BudgetTracker[الشهر],\"مارس\")","v":{"v":0,"d":"ر.س.‏ 0"}}]
["حفلات الزفاف",null,"أبريل","أبريل",{"$f":"SUMIFS(BudgetTracker[المبلغ\nالمدرجة في الميزانية],BudgetTracker[الشهر],\"أبريل\",BudgetTracker[مناسبة],\"أعياد ميلاد\")","v":{"v":0,"d":"ر.س.‏ 0"}},{"$f":"SUMIFS(BudgetTracker[المبلغ\nالمدرجة في الميزانية],BudgetTracker[الشهر],\"أبريل\",BudgetTracker[مناسبة],\"أيام الإجازات\")","v":{"v":0,"d":"ر.س.‏ 0"}},{"$f":"SUMIFS(BudgetTracker[المبلغ\nالمدرجة في الميزانية],BudgetTracker[الشهر],\"أبريل\",BudgetTracker[مناسبة],\"<>أيام الإجازات\",BudgetTracker[مناسبة],\"<>أعياد ميلاد\")","v":{"v":20,"d":"ر.س.‏ 20"}},{"$f":"SUMIFS(BudgetTracker[المبلغ\nما تم إنفاقه],BudgetTracker[الشهر],\"أبريل\")","v":{"v":20,"d":"ر.س.‏ 20"}}]
["حفلات هدايا الزواج",null,"مايو","مايو",{"$f":"SUMIFS(BudgetTracker[المبلغ\nالمدرجة في الميزانية],BudgetTracker[الشهر],\"مايو\",BudgetTracker[مناسبة],\"أعياد ميلاد\")","v":{"v":0,"d":"ر.س.‏ 0"}},{"$f":"SUMIFS(BudgetTracker[المبلغ\nالمدرجة في الميزانية],BudgetTracker[الشهر],\"مايو\",BudgetTracker[مناسبة],\"أيام الإجازات\")","v":{"v":0,"d":"ر.س.‏ 0"}},{"$f":"SUMIFS(BudgetTracker[المبلغ\nالمدرجة في الميزانية],BudgetTracker[الشهر],\"مايو\",BudgetTracker[مناسبة],\"<>أيام الإجازات\",BudgetTracker[مناسبة],\"<>أعياد ميلاد\")","v":{"v":0,"d":"ر.س.‏ 0"}},{"$f":"SUMIFS(BudgetTracker[المبلغ\nما تم إنفاقه],BudgetTracker[الشهر],\"مايو\")","v":{"v":0,"d":"ر.س.‏ 0"}}]
["الاحتفال بالمولود",null,"يونيو","يونيو",{"$f":"SUMIFS(BudgetTracker[المبلغ\nالمدرجة في الميزانية],BudgetTracker[الشهر],\"يونيو\",BudgetTracker[مناسبة],\"أعياد ميلاد\")","v":{"v":50,"d":"ر.س.‏ 50"}},{"$f":"SUMIFS(BudgetTracker[المبلغ\nالمدرجة في الميزانية],BudgetTracker[الشهر],\"يونيو\",BudgetTracker[مناسبة],\"أيام الإجازات\")","v":{"v":0,"d":"ر.س.‏ 0"}},{"$f":"SUMIFS(BudgetTracker[المبلغ\nالمدرجة في الميزانية],BudgetTracker[الشهر],\"يونيو\",BudgetTracker[مناسبة],\"<>أيام الإجازات\",BudgetTracker[مناسبة],\"<>أعياد ميلاد\")","v":{"v":100,"d":"ر.س.‏ 100"}},{"$f":"SUMIFS(BudgetTracker[المبلغ\nما تم إنفاقه],BudgetTracker[الشهر],\"يونيو\")","v":{"v":180,"d":"ر.س.‏ 180"}}]
["حفلات التخرج",null,"يوليو","يوليو",{"$f":"SUMIFS(BudgetTracker[المبلغ\nالمدرجة في الميزانية],BudgetTracker[الشهر],\"يوليو\",BudgetTracker[مناسبة],\"أعياد ميلاد\")","v":{"v":0,"d":"ر.س.‏ 0"}},{"$f":"SUMIFS(BudgetTracker[المبلغ\nالمدرجة في الميزانية],BudgetTracker[الشهر],\"يوليو\",BudgetTracker[مناسبة],\"أيام الإجازات\")","v":{"v":50,"d":"ر.س.‏ 50"}},{"$f":"SUMIFS(BudgetTracker[المبلغ\nالمدرجة في الميزانية],BudgetTracker[الشهر],\"يوليو\",BudgetTracker[مناسبة],\"<>أيام الإجازات\",BudgetTracker[مناسبة],\"<>أعياد ميلاد\")","v":{"v":0,"d":"ر.س.‏ 0"}},{"$f":"SUMIFS(BudgetTracker[المبلغ\nما تم إنفاقه],BudgetTracker[الشهر],\"يوليو\")","v":{"v":70,"d":"ر.س.‏ 70"}}]
["أخرى",null,"أغسطس","أغسطس",{"$f":"SUMIFS(BudgetTracker[المبلغ\nالمدرجة في الميزانية],BudgetTracker[الشهر],\"أغسطس\",BudgetTracker[مناسبة],\"أعياد ميلاد\")","v":{"v":0,"d":"ر.س.‏ 0"}},{"$f":"SUMIFS(BudgetTracker[المبلغ\nالمدرجة في الميزانية],BudgetTracker[الشهر],\"أغسطس\",BudgetTracker[مناسبة],\"أيام الإجازات\")","v":{"v":0,"d":"ر.س.‏ 0"}},{"$f":"SUMIFS(BudgetTracker[المبلغ\nالمدرجة في الميزانية],BudgetTracker[الشهر],\"أغسطس\",BudgetTracker[مناسبة],\"<>أيام الإجازات\",BudgetTracker[مناسبة],\"<>أعياد ميلاد\")","v":{"v":0,"d":"ر.س.‏ 0"}},{"$f":"SUMIFS(BudgetTracker[المبلغ\nما تم إنفاقه],BudgetTracker[الشهر],\"أغسطس\")","v":{"v":0,"d":"ر.س.‏ 0"}}]
[null,null,"سبتمبر","سبتمبر",{"$f":"SUMIFS(BudgetTracker[المبلغ\nالمدرجة في الميزانية],BudgetTracker[الشهر],\"سبتمبر\",BudgetTracker[مناسبة],\"أعياد ميلاد\")","v":{"v":0,"d":"ر.س.‏ 0"}},{"$f":"SUMIFS(BudgetTracker[المبلغ\nالمدرجة في الميزانية],BudgetTracker[الشهر],\"سبتمبر\",BudgetTracker[مناسبة],\"أيام الإجازات\")","v":{"v":0,"d":"ر.س.‏ 0"}},{"$f":"SUMIFS(BudgetTracker[المبلغ\nالمدرجة في الميزانية],BudgetTracker[الشهر],\"سبتمبر\",BudgetTracker[مناسبة],\"<>أيام الإجازات\",BudgetTracker[مناسبة],\"<>أعياد ميلاد\")","v":{"v":0,"d":"ر.س.‏ 0"}},{"$f":"SUMIFS(BudgetTracker[المبلغ\nما تم إنفاقه],BudgetTracker[الشهر],\"سبتمبر\")","v":{"v":0,"d":"ر.س.‏ 0"}}]
[null,null,"أكتوبر","أكتوبر",{"$f":"SUMIFS(BudgetTracker[المبلغ\nالمدرجة في الميزانية],BudgetTracker[الشهر],\"أكتوبر\",BudgetTracker[مناسبة],\"أعياد ميلاد\")","v":{"v":0,"d":"ر.س.‏ 0"}},{"$f":"SUMIFS(BudgetTracker[المبلغ\nالمدرجة في الميزانية],BudgetTracker[الشهر],\"أكتوبر\",BudgetTracker[مناسبة],\"أيام الإجازات\")","v":{"v":0,"d":"ر.س.‏ 0"}},{"$f":"SUMIFS(BudgetTracker[المبلغ\nالمدرجة في الميزانية],BudgetTracker[الشهر],\"أكتوبر\",BudgetTracker[مناسبة],\"<>أيام الإجازات\",BudgetTracker[مناسبة],\"<>أعياد ميلاد\")","v":{"v":0,"d":"ر.س.‏ 0"}},{"$f":"SUMIFS(BudgetTracker[المبلغ\nما تم إنفاقه],BudgetTracker[الشهر],\"أكتوبر\")","v":{"v":0,"d":"ر.س.‏ 0"}}]
[null,null,"نوفمبر","نوفمبر",{"$f":"SUMIFS(BudgetTracker[المبلغ\nالمدرجة في الميزانية],BudgetTracker[الشهر],\"نوفمبر\",BudgetTracker[مناسبة],\"أعياد ميلاد\")","v":{"v":0,"d":"ر.س.‏ 0"}},{"$f":"SUMIFS(BudgetTracker[المبلغ\nالمدرجة في الميزانية],BudgetTracker[الشهر],\"نوفمبر\",BudgetTracker[مناسبة],\"أيام الإجازات\")","v":{"v":0,"d":"ر.س.‏ 0"}},{"$f":"SUMIFS(BudgetTracker[المبلغ\nالمدرجة في الميزانية],BudgetTracker[الشهر],\"نوفمبر\",BudgetTracker[مناسبة],\"<>أيام الإجازات\",BudgetTracker[مناسبة],\"<>أعياد ميلاد\")","v":{"v":0,"d":"ر.س.‏ 0"}},{"$f":"SUMIFS(BudgetTracker[المبلغ\nما تم إنفاقه],BudgetTracker[الشهر],\"نوفمبر\")","v":{"v":0,"d":"ر.س.‏ 0"}}]
[null,null,"ديسمبر","ديسمبر",{"$f":"SUMIFS(BudgetTracker[المبلغ\nالمدرجة في الميزانية],BudgetTracker[الشهر],\"ديسمبر\",BudgetTracker[مناسبة],\"أعياد ميلاد\")","v":{"v":0,"d":"ر.س.‏ 0"}},{"$f":"SUMIFS(BudgetTracker[المبلغ\nالمدرجة في الميزانية],BudgetTracker[الشهر],\"ديسمبر\",BudgetTracker[مناسبة],\"أيام الإجازات\")","v":{"v":0,"d":"ر.س.‏ 0"}},{"$f":"SUMIFS(BudgetTracker[المبلغ\nالمدرجة في الميزانية],BudgetTracker[الشهر],\"ديسمبر\",BudgetTracker[مناسبة],\"<>أيام الإجازات\",BudgetTracker[مناسبة],\"<>أعياد ميلاد\")","v":{"v":0,"d":"ر.س.‏ 0"}},{"$f":"SUMIFS(BudgetTracker[المبلغ\nما تم إنفاقه],BudgetTracker[الشهر],\"ديسمبر\")","v":{"v":0,"d":"ر.س.‏ 0"}}]